[Event "LAT-ch 2020"]
[Site "Riga"]
[Date "2020.08.27"]
[Round "5.3"]
[White "Sveshnikov, Vladimir"]
[Black "Berzinsh, Roland"]
[Result "1/2-1/2"]
[ECO "C56"]
[WhiteElo "2426"]
[BlackElo "2378"]
[Annotator "ChessBase"]
[PlyCount "98"]
[EventDate "2020.08.24"]
[EventType "swiss"]
[EventCountry "LAT"]
[SourceTitle "playchess.com"]
[Source "ChessBase"]
[SourceQuality "1"]
[TimeControl "5400+30"]

1. e4 {[%emt 0:11:24]} e5 {[%emt 0:00:00]} 2. Nf3 {[%emt 0:00:23]} Nc6 {[%emt 0:00:03]} 3. Bc4 {[%emt 0:00:12]} Nf6 {[%emt 0:00:52]} 4. d4 {[%emt 0:00:54]} exd4 {[%emt 0:00:12]} 5. e5 {[%emt 0:00:04]} d5 {[%emt 0:00:37]} 6. Bb5 {[%emt 0:00:06]} Ne4 {[%emt 0:00:08]} 7. Nxd4 {[%emt 0:00:11]} Bd7 {[%emt 0:00:10]} 8. Bxc6 {[%emt 0:00:09]} Bxc6 {[%emt 0:00:24]} 9. O-O {[%emt 0:01:03]} Bc5 {[%emt 0:00:13]} 10. Be3 {[%emt 0:00:22]} O-O {[%emt 0:00:34]} 11. f3 {[%emt 0:00:06]} Ng5 {[%emt 0:01:59]} 12. Nc3 {[%emt 0:00:06]} f6 {[%emt 0:03:55]} 13. Kh1 {[%emt 0:01:22]} Bxd4 {[%emt 0:09:11]} 14. Bxd4 {[%emt 0:00:07]} f5 {[%emt 0:11:36]} 15. Qd2 {[%emt 0:00:02]} Ne6 {[%emt 0:01:23]} 16. Rad1 {[%emt 0:12:56]} Qe7 {[%emt 0:06:58]} 17. Rfe1 {[%emt 0:05:23]} f4 {[%emt 0:07:23]} 18. Bf2 {[%emt 0:01:24]} Rad8 {[%emt 0:03:18]} 19. Ne2 {[%emt 0:00:53]} b6 {[%emt 0:01:39]} 20. Nd4 {[%emt 0:01:20]} Bd7 {[%emt 0:01:20]} 21. b4 {[%emt 0:05:32]} c5 {[%emt 0:04:29]} 22. Nxe6 {[%emt 0:00:15]} Bxe6 {[%emt 0:00:09]} 23. bxc5 {[%emt 0:00:49]} bxc5 {[%emt 0:00:04]} 24. Qa5 {[%emt 0:01:42]} d4 {[%emt 0:03:55]} 25. c3 {[%emt 0:02:24]} Rd5 {[%emt 0:00:21]} 26. cxd4 {[%emt 0:01:33]} cxd4 {[%emt 0:00:26]} 27. Qa6 {[%emt 0:05:58]} Rfd8 {[%emt 0:03:06]} 28. Bh4 {[%emt 0:07:42]} Qxh4 {[%emt 0:00:36]} 29. Qxe6+ {[%emt 0:01:49]} Kh8 {[%emt 0:00:01]} 30. Qf7 {[%emt 0:02:27]} R5d7 {[%emt 0:17:52]} 31. Qf5 {[%emt 0:03:03]} d3 {[%emt 0:11:28]} 32. e6 {[%emt 0:00:15]} Re7 {[%emt 0:01:13]} 33. Re4 {[%emt 0:07:15]} Qf6 {[%emt 0:01:12]} 34. Qxf6 {[%emt 0:07:11]} gxf6 {[%emt 0:00:09]} 35. Kg1 {[%emt 0:00:12]} Rd6 {[%emt 0:06:11]} 36. Kf1 {[%emt 0:02:01]} Kg7 {[%emt 0:00:45]} 37. a3 {[%emt 0:06:56]} Kg6 {[%emt 0:00:47]} 38. Rxf4 {[%emt 0:01:23]} Rexe6 {[%emt 0:00:15]} 39. Rd2 {[%emt 0:00:33]} h5 {[%emt 0:01:19]} 40. Kf2 {[%emt 0:00:30]} Re7 {[%emt 0:01:11]} 41. Rc4 {[%emt 0:03:12]} Re5 {[%emt 0:00:26]} 42. Ra4 {[%emt 0:01:15]} Rd7 {[%emt 0:00:30]} 43. Re4 {[%emt 0:01:36]} Ra5 {[%emt 0:00:15]} 44. a4 {[%emt 0:00:06]} Rc5 {[%emt 0:01:37]} 45. Ke3 {[%emt 0:00:15]} Rc3 {[%emt 0:00:19]} 46. h4 {[%emt 0:00:54]} Ra3 {[%emt 0:00:23]} 47. Kf4 {[%emt 0:00:40]} Rd5 {[%emt 0:00:57]} 48. g4 {[%emt 0:02:09]} Ra5 {[%emt 0:00:05]} 49. Kg3 {[%emt 0:01:43]} R5xa4 {[%emt 0:00:16]} 1/2-1/2

[Event "LAT-ch 2020"]
[Site "Riga"]
[Date "2020.08.27"]
[Round "5.4"]
[White "Golubovskis, Maksims"]
[Black "Mustaps, Matiss"]
[Result "0-1"]
[ECO "B07"]
[WhiteElo "2234"]
[BlackElo "2363"]
[Annotator "ChessBase"]
[PlyCount "128"]
[EventDate "2020.08.24"]
[EventType "swiss"]
[EventCountry "LAT"]
[SourceTitle "playchess.com"]
[Source "ChessBase"]
[SourceQuality "1"]
[TimeControl "5400+30"]

1. e4 {[%emt 0:02:08]} d6 {[%emt 0:00:21]} 2. d4 {[%emt 0:00:15]} Nf6 {[%emt 0:00:04]} 3. Nc3 {[%emt 0:00:06]} g6 {[%emt 0:00:02]} 4. Be3 {[%emt 0:00:10]} c6 {[%emt 0:05:09]} 5. Qd2 {[%emt 0:00:14]} b5 {[%emt 0:00:05]} 6. f3 {[%emt 0:00:10]} Nbd7 {[%emt 0:00:48]} 7. Nge2 {[%emt 0:01:57]} Nb6 {[%emt 0:00:23]} 8. Nf4 {[%emt 0:00:54]} Qc7 {[%emt 0:09:12]} 9. Bd3 {[%emt 0:02:12]} Bg7 {[%emt 0:04:24]} 10. a4 {[%emt 0:05:02]} Nc4 {[%emt 0:01:16]} 11. Bxc4 {[%emt 0:00:10]} bxc4 {[%emt 0:00:02]} 12. d5 {[%emt 0:00:59]} Bb7 {[%emt 0:09:07]} 13. Qd4 {[%emt 0:24:15]} cxd5 {[%emt 0:09:19]} 14. Nfxd5 {[%emt 0:00:38]} Bxd5 {[%emt 0:00:08]} 15. Nxd5 {[%emt 0:00:31]} Qb7 {[%emt 0:00:05]} 16. Bg5 {[%emt 0:12:12]} O-O {[%emt 0:00:22]} 17. Bxf6 {[%emt 0:01:01]} exf6 {[%emt 0:00:06]} 18. O-O {[%emt 0:11:08]} f5 {[%emt 0:02:05]} 19. Qxc4 {[%emt 0:04:28]} fxe4 {[%emt 0:07:41]} 20. Qxe4 {[%emt 0:03:49]} Qxb2 {[%emt 0:00:36]} 21. Rab1 {[%emt 0:01:04]} Qd4+ {[%emt 0:05:08]} 22. Qxd4 {[%emt 0:00:12]} Bxd4+ {[%emt 0:00:06]} 23. Kh1 {[%emt 0:00:01]} Kg7 {[%emt 0:00:28]} 24. Rfd1 {[%emt 0:04:16]} Bc5 {[%emt 0:00:24]} 25. g3 {[%emt 0:03:05]} Rab8 {[%emt 0:00:37]} 26. Kg2 {[%emt 0:02:15]} Rfc8 {[%emt 0:03:28]} 27. Rb3 {[%emt 0:00:59]} Re8 {[%emt 0:02:41]} 28. Kf1 {[%emt 0:00:32]} Rbc8 {[%emt 0:00:13]} 29. Rbd3 {[%emt 0:03:08]} h5 {[%emt 0:01:02]} 30. Rb1 {[%emt 0:02:43]} h4 {[%emt 0:00:20]} 31. g4 {[%emt 0:02:00]} h3 {[%emt 0:02:18]} 32. Nf4 {[%emt 0:02:49]} Be3 {[%emt 0:00:50]} 33. Nxh3 {[%emt 0:02:15]} Rxc2 {[%emt 0:21:30]} 34. Re1 {[%emt 0:00:09]} Rh8 {[%emt 0:00:07]} 35. Re2 {[%emt 0:04:30]} Rc1+ {[%emt 0:00:33]} 36. Kg2 {[%emt 0:01:44]} Bc5 {[%emt 0:00:06]} 37. Rdd2 {[%emt 0:00:48]} a5 {[%emt 0:02:59]} 38. Rc2 {[%emt 0:00:25]} Ra1 {[%emt 0:00:15]} 39. Ra2 {[%emt 0:00:01]} Rb1 {[%emt 0:01:59]} 40. Rab2 {[%emt 0:00:01]} Rd1 {[%emt 0:00:43]} 41. Nf2 {[%emt 0:01:16]} Rd4 {[%emt 0:02:50]} 42. Re4 {[%emt 0:00:03]} Rb4 {[%emt 0:00:03]} 43. Nd3 {[%emt 0:01:49]} Rxb2+ {[%emt 0:02:20]} 44. Nxb2 {[%emt 0:00:01]} d5 {[%emt 0:00:49]} 45. Re2 {[%emt 0:00:01]} Rb8 {[%emt 0:00:25]} 46. Nd3 {[%emt 0:01:24]} Bd6 {[%emt 0:00:06]} 47. Rd2 {[%emt 0:01:28]} d4 {[%emt 0:03:43]} 48. f4 {[%emt 0:00:22]} Rb1 {[%emt 0:00:36]} 49. Kf3 {[%emt 0:00:55]} Ra1 {[%emt 0:02:05]} 50. Ke4 {[%emt 0:00:49]} Rxa4 {[%emt 0:00:21]} 51. Kd5 {[%emt 0:00:45]} Bf8 {[%emt 0:02:05]} 52. h3 {[%emt 0:00:50]} Ra1 {[%emt 0:00:42]} 53. Kxd4 {[%emt 0:00:07]} a4 {[%emt 0:00:05]} 54. Nc5 {[%emt 0:00:59]} a3 {[%emt 0:00:16]} 55. Nb3 {[%emt 0:00:27]} Rh1 {[%emt 0:00:32]} 56. Ra2 {[%emt 0:00:27]} Rxh3 {[%emt 0:00:14]} 57. Nc5 {[%emt 0:00:26]} Bxc5+ {[%emt 0:00:14]} 58. Kxc5 {[%emt 0:00:06]} Rf3 {[%emt 0:00:02]} 59. f5 {[%emt 0:00:13]} g5 {[%emt 0:00:01]} 60. Kd5 {[%emt 0:00:13]} Kf6 {[%emt 0:00:13]} 61. Rh2 {[%emt 0:00:37]} Rf4 {[%emt 0:01:50]} 62. Rg2 {[%emt 0:00:26]} Ra4 {[%emt 0:00:11]} 63. Ra2 {[%emt 0:00:05]} Rxg4 {[%emt 0:00:31]} 64. Rxa3 {[%emt 0:00:05]} Kxf5 {[%emt 0:00:08]} 0-1

[Event "LAT-ch 2020"]
[Site "Riga"]
[Date "2020.08.28"]
[Round "6.1"]
[White "Semjonovs, Ilja"]
[Black "Lanka, Zigurds"]
[Result "0-1"]
[ECO "B30"]
[WhiteElo "2368"]
[BlackElo "2391"]
[Annotator "ChessBase"]
[PlyCount "112"]
[EventDate "2020.08.24"]
[EventType "swiss"]
[EventCountry "LAT"]
[SourceTitle "playchess.com"]
[Source "ChessBase"]
[SourceQuality "1"]
[TimeControl "5400+30"]

1. e4 {[%emt 0:00:00]} c5 {[%emt 0:00:00]} 2. Nf3 {[%emt 0:00:00]} Nc6 {[%emt 0:00:05]} 3. Nc3 {[%emt 0:04:26]} e5 {[%emt 0:00:21]} 4. Bc4 {[%emt 0:02:17]} d6 {[%emt 0:00:13]} 5. d3 {[%emt 0:00:05]} h6 {[%emt 0:00:22]} 6. Be3 {[%emt 0:13:50]} g6 {[%emt 0:01:14]} 7. Nd5 {[%emt 0:12:12]} Bg7 {[%emt 0:01:35]} 8. c3 {[%emt 0:01:41]} Nf6 {[%emt 0:00:59]} 9. h3 {[%emt 0:12:45]} Rb8 {[%emt 0:03:59]} 10. a3 {[%emt 0:01:25]} O-O {[%emt 0:06:33]} 11. Qd2 {[%emt 0:10:26]} Kh7 {[%emt 0:05:53]} 12. Nxf6+ {[%emt 0:01:16]} Qxf6 {[%emt 0:00:14]} 13. h4 {[%emt 0:00:04]} Qe7 {[%emt 0:03:22]} 14. b4 {[%emt 0:06:22]} b6 {[%emt 0:02:32]} 15. O-O-O {[%emt 0:03:41]} Nd8 {[%emt 0:10:46]} 16. Kb2 {[%emt 0:04:20]} Be6 {[%emt 0:02:52]} 17. b5 {[%emt 0:09:46]} f6 {[%emt 0:04:33]} 18. h5 {[%emt 0:05:56]} g5 {[%emt 0:00:26]} 19. Bxe6 {[%emt 0:00:51]} Qxe6 {[%emt 0:04:25]} 20. c4 {[%emt 0:00:12]} a6 {[%emt 0:04:36]} 21. a4 {[%emt 0:00:25]} f5 {[%emt 0:02:04]} 22. Qc2 {[%emt 0:00:13]} Kg8 {[%emt 0:01:43]} 23. Ng1 {[%emt 0:01:09]} Ra8 {[%emt 0:01:17]} 24. f3 {[%emt 0:03:34]} f4 {[%emt 0:05:42]} 25. Bd2 {[%emt 0:00:39]} Qd7 {[%emt 0:02:11]} 26. Bc3 {[%emt 0:01:10]} Ne6 {[%emt 0:02:46]} 27. Nh3 {[%emt 0:01:18]} Ra7 {[%emt 0:01:13]} 28. Nf2 {[%emt 0:00:32]} Rfa8 {[%emt 0:03:32]} 29. Qb3 {[%emt 0:00:57]} Qf7 {[%emt 0:01:16]} 30. Ra1 {[%emt 0:02:34]} axb5 {[%emt 0:01:33]} 31. axb5 {[%emt 0:00:50]} Rxa1 {[%emt 0:00:24]} 32. Rxa1 {[%emt 0:00:01]} Rxa1 {[%emt 0:00:37]} 33. Kxa1 {[%emt 0:00:01]} Qxh5 {[%emt 0:00:08]} 34. Qd1 {[%emt 0:00:31]} Qe8 {[%emt 0:02:13]} 35. Qa4 {[%emt 0:00:27]} Qb8 {[%emt 0:00:17]} 36. Kb1 {[%emt 0:00:35]} Nf8 {[%emt 0:00:39]} 37. Kc2 {[%emt 0:00:34]} Ng6 {[%emt 0:00:39]} 38. Qa6 {[%emt 0:00:27]} Bf6 {[%emt 0:03:57]} 39. Ng4 {[%emt 0:00:22]} Kg7 {[%emt 0:00:18]} 40. Be1 {[%emt 0:00:45]} Bd8 {[%emt 0:01:31]} 41. Kd1 {[%emt 0:00:32]} h5 {[%emt 0:01:56]} 42. Nh2 {[%emt 0:00:04]} Nf8 {[%emt 0:00:50]} 43. Ke2 {[%emt 0:00:18]} Ne6 {[%emt 0:02:29]} 44. Bf2 {[%emt 0:00:07]} Be7 {[%emt 0:01:45]} 45. Kf1 {[%emt 0:00:26]} Nc7 {[%emt 0:01:58]} 46. Qa1 {[%emt 0:00:07]} Qc8 {[%emt 0:01:13]} 47. Be1 {[%emt 0:01:38]} g4 {[%emt 0:01:57]} 48. fxg4 {[%emt 0:00:22]} hxg4 {[%emt 0:00:04]} 49. Qa7 {[%emt 0:00:47]} Kf7 {[%emt 0:05:44]} 50. Qxb6 {[%emt 0:00:58]} g3 {[%emt 0:00:47]} 51. Nf3 {[%emt 0:00:14]} Ne6 {[%emt 0:00:07]} 52. Bc3 {[%emt 0:01:16]} Qh8 {[%emt 0:00:31]} 53. Ke2 {[%emt 0:00:31]} Qh1 {[%emt 0:00:22]} 54. Ne1 {[%emt 0:00:07]} f3+ {[%emt 0:01:06]} 55. gxf3 {[%emt 0:00:04]} Nf4+ {[%emt 0:01:27]} 56. Kd2 {[%emt 0:00:11]} g2 {[%emt 0:00:15]} 0-1

[Event "LAT-ch 2020"]
[Site "Riga"]
[Date "2020.08.28"]
[Round "6.2"]
[White "Mustaps, Matiss"]
[Black "Kantans, Toms"]
[Result "0-1"]
[ECO "B87"]
[WhiteElo "2363"]
[BlackElo "2499"]
[Annotator "ChessBase"]
[PlyCount "98"]
[EventDate "2020.08.24"]
[EventType "swiss"]
[EventCountry "LAT"]
[SourceTitle "playchess.com"]
[Source "ChessBase"]
[SourceQuality "1"]
[TimeControl "5400+30"]

1. e4 {[%emt 0:00:00]} c5 {[%emt 0:00:00]} 2. Nf3 {[%emt 0:00:00]} d6 {[%emt 0:00:03]} 3. d4 {[%emt 0:00:33]} cxd4 {[%emt 0:00:06]} 4. Nxd4 {[%emt 0:00:02]} Nf6 {[%emt 0:00:08]} 5. Nc3 {[%emt 0:00:02]} a6 {[%emt 0:00:07]} 6. Bc4 {[%emt 0:01:22]} b5 {[%emt 0:00:31]} 7. Bb3 {[%emt 0:00:09]} Bb7 {[%emt 0:00:06]} 8. O-O {[%emt 0:01:11]} Nbd7 {[%emt 0:00:21]} 9. Bg5 {[%emt 0:04:24]} e6 {[%emt 0:00:32]} 10. Re1 {[%emt 0:01:27]} h6 {[%emt 0:00:35]} 11. Bh4 {[%emt 0:01:58]} g5 {[%emt 0:00:35]} 12. Bg3 {[%emt 0:00:05]} Ne5 {[%emt 0:00:05]} 13. Bxe6 {[%emt 0:13:13]} fxe6 {[%emt 0:01:15]} 14. Nxe6 {[%emt 0:00:03]} Qe7 {[%emt 0:26:51]} 15. Nd5 {[%emt 0:14:03]} Nxd5 {[%emt 0:06:25]} 16. Bxe5 {[%emt 0:26:03]} dxe5 {[%emt 0:00:38]} 17. exd5 {[%emt 0:00:05]} Qf6 {[%emt 0:08:30]} 18. Qh5+ {[%emt 0:16:46]} Ke7 {[%emt 0:11:57]} 19. Rad1 {[%emt 0:00:12]} Rd8 {[%emt 0:30:29]} 20. Nxd8 {[%emt 0:08:00]} Kxd8 {[%emt 0:00:01]} 21. Re3 {[%emt 0:00:51]} Bc5 {[%emt 0:02:46]} 22. Rf3 {[%emt 0:00:06]} Qb6 {[%emt 0:00:29]} 23. Qg4 {[%emt 0:09:23]} Qg6 {[%emt 0:05:20]} 24. Qe6 {[%emt 0:01:11]} Qxe6 {[%emt 0:02:07]} 25. dxe6+ {[%emt 0:00:03]} Kc7 {[%emt 0:00:47]} 26. Rf7+ {[%emt 0:01:04]} Kb6 {[%emt 0:00:25]} 27. c3 {[%emt 0:00:10]} a5 {[%emt 0:01:20]} 28. e7 {[%emt 0:00:32]} Re8 {[%emt 0:00:20]} 29. Rh7 {[%emt 0:01:00]} Rxe7 {[%emt 0:00:17]} 30. Rxh6+ {[%emt 0:00:18]} Bc6 {[%emt 0:00:52]} 31. Rd8 {[%emt 0:00:19]} Rf7 {[%emt 0:00:56]} 32. Rc8 {[%emt 0:00:33]} Bxf2+ {[%emt 0:00:04]} 33. Kf1 {[%emt 0:00:33]} Bc5+ {[%emt 0:00:04]} 34. Ke2 {[%emt 0:00:17]} Rc7 {[%emt 0:00:02]} 35. Rxc7 {[%emt 0:00:12]} Kxc7 {[%emt 0:00:01]} 36. g4 {[%emt 0:00:53]} Bd5 {[%emt 0:01:25]} 37. h4 {[%emt 0:00:18]} gxh4 {[%emt 0:00:24]} 38. Rxh4 {[%emt 0:00:59]} Be7 {[%emt 0:01:33]} 39. Rh7 {[%emt 0:00:28]} Kd6 {[%emt 0:00:08]} 40. Rh6+ {[%emt 0:00:40]} Kd7 {[%emt 0:00:10]} 41. b3 {[%emt 0:00:29]} a4 {[%emt 0:00:04]} 42. bxa4 {[%emt 0:00:31]} bxa4 {[%emt 0:00:31]} 43. Kd1 {[%emt 0:00:30]} Bxa2 {[%emt 0:00:13]} 44. Ra6 {[%emt 0:00:15]} Bb3+ {[%emt 0:00:15]} 45. Kd2 {[%emt 0:00:41]} Bg5+ {[%emt 0:01:34]} 46. Kd3 {[%emt 0:00:04]} Bc1 {[%emt 0:00:48]} 47. c4 {[%emt 0:01:00]} Bb2 {[%emt 0:00:27]} 48. Rb6 {[%emt 0:00:23]} Kc7 {[%emt 0:00:27]} 49. g5 {[%emt 0:00:37]} Kxb6 {[%emt 0:00:14]} 0-1

[Event "LAT-ch 2020"]
[Site "Riga"]
[Date "2020.08.28"]
[Round "6.3"]
[White "Batashevs, Arsens"]
[Black "Sveshnikov, Vladimir"]
[Result "1-0"]
[ECO "B12"]
[WhiteElo "2149"]
[BlackElo "2426"]
[Annotator "ChessBase"]
[PlyCount "53"]
[EventDate "2020.08.24"]
[EventType "swiss"]
[EventCountry "LAT"]
[SourceTitle "playchess.com"]
[Source "ChessBase"]
[SourceQuality "1"]
[TimeControl "5400+30"]

1. e4 {[%emt 0:01:26]} c6 {[%emt 0:01:38]} 2. d4 {[%emt 0:00:06]} d5 {[%emt 0:00:01]} 3. e5 {[%emt 0:00:06]} Bf5 {[%emt 0:00:07]} 4. h4 {[%emt 0:00:13]} h5 {[%emt 0:00:25]} 5. Bg5 {[%emt 0:00:07]} Qb6 {[%emt 0:00:46]} 6. Bd3 {[%emt 0:01:46]} Bxd3 {[%emt 0:06:45]} 7. Qxd3 {[%emt 0:00:05]} e6 {[%emt 0:02:03]} 8. Nd2 {[%emt 0:02:16]} c5 {[%emt 0:00:01]} 9. c4 {[%emt 0:04:22]} Qxb2 {[%emt 0:00:03]} 10. Rb1 {[%emt 0:00:05]} Qxd4 {[%emt 0:00:06]} 11. Qb3 {[%emt 0:00:08]} Qxe5+ {[%emt 0:05:53]} 12. Ne2 {[%emt 0:00:07]} Nd7 {[%emt 0:06:43]} 13. Bf4 {[%emt 0:00:22]} Qf5 {[%emt 0:32:42]} 14. Qxb7 {[%emt 0:00:22]} Rd8 {[%emt 0:00:02]} 15. Bc7 {[%emt 0:00:37]} d4 {[%emt 0:06:37]} 16. Bxd8 {[%emt 0:00:45]} Kxd8 {[%emt 0:01:39]} 17. Qa8+ {[%emt 0:00:04]} Ke7 {[%emt 0:00:04]} 18. Qe4 {[%emt 0:07:14]} Qxe4 {[%emt 0:10:54]} 19. Nxe4 {[%emt 0:00:11]} Ngf6 {[%emt 0:00:31]} 20. Ng5 {[%emt 0:00:47]} g6 {[%emt 0:09:18]} 21. Rh3 {[%emt 0:00:39]} Bh6 {[%emt 0:02:05]} 22. Ra3 {[%emt 0:00:12]} Bxg5 {[%emt 0:03:15]} 23. hxg5 {[%emt 0:01:42]} Ne4 {[%emt 0:00:35]} 24. Rxa7 {[%emt 0:01:58]} Rd8 {[%emt 0:02:09]} 25. Nf4 {[%emt 0:00:25]} Nxg5 {[%emt 0:03:32]} 26. Nd3 {[%emt 0:01:44]} Kf6 {[%emt 0:00:56]} 27. f4 {[%emt 0:00:39]} 1-0

[Event "LAT-ch 2020"]
[Site "Riga"]
[Date "2020.08.28"]
[Round "6.4"]
[White "Osis, Renars"]
[Black "Berzinsh, Roland"]
[Result "0-1"]
[ECO "D02"]
[WhiteElo "2115"]
[BlackElo "2378"]
[Annotator "ChessBase"]
[PlyCount "62"]
[EventDate "2020.08.24"]
[EventType "swiss"]
[EventCountry "LAT"]
[SourceTitle "playchess.com"]
[Source "ChessBase"]
[SourceQuality "1"]
[TimeControl "5400+30"]

1. d4 {[%emt 0:13:15]} d5 {[%emt 0:00:00]} 2. Nf3 {[%emt 0:00:04]} Nf6 {[%emt 0:00:00]} 3. Bf4 {[%emt 0:00:11]} c5 {[%emt 0:00:08]} 4. e3 {[%emt 0:01:19]} Nc6 {[%emt 0:00:17]} 5. c3 {[%emt 0:03:31]} Qb6 {[%emt 0:00:35]} 6. Na3 {[%emt 0:16:50]} a6 {[%emt 0:14:36]} 7. Qb3 {[%emt 0:02:58]} Qa5 {[%emt 0:09:06]} 8. Ne5 {[%emt 0:19:18]} e6 {[%emt 0:05:23]} 9. dxc5 {[%emt 0:18:44]} Nxe5 {[%emt 0:05:21]} 10. Bxe5 {[%emt 0:00:21]} Nd7 {[%emt 0:00:08]} 11. Bf4 {[%emt 0:02:26]} Nxc5 {[%emt 0:06:37]} 12. Qc2 {[%emt 0:00:11]} f6 {[%emt 0:01:53]} 13. f3 {[%emt 0:08:28]} e5 {[%emt 0:12:24]} 14. Bg3 {[%emt 0:00:21]} Be6 {[%emt 0:00:08]} 15. Bf2 {[%emt 0:02:34]} Rc8 {[%emt 0:11:25]} 16. Be2 {[%emt 0:00:35]} Be7 {[%emt 0:01:41]} 17. O-O {[%emt 0:00:10]} O-O {[%emt 0:00:12]} 18. Rfd1 {[%emt 0:02:30]} b5 {[%emt 0:07:49]} 19. Qd2 {[%emt 0:00:02]} Na4 {[%emt 0:01:18]} 20. Nb1 {[%emt 0:04:07]} Rfd8 {[%emt 0:00:32]} 21. Kf1 {[%emt 0:01:44]} Qc7 {[%emt 0:02:56]} 22. Qc2 {[%emt 0:00:35]} Bf7 {[%emt 0:02:33]} 23. Bd3 {[%emt 0:00:27]} e4 {[%emt 0:00:54]} 24. fxe4 {[%emt 0:00:16]} dxe4 {[%emt 0:00:18]} 25. Be2 {[%emt 0:00:54]} Rxd1+ {[%emt 0:01:32]} 26. Bxd1 {[%emt 0:00:02]} Qxh2 {[%emt 0:01:04]} 27. Qxe4 {[%emt 0:00:32]} Rd8 {[%emt 0:04:15]} 28. Bc2 {[%emt 0:00:49]} Bc4+ {[%emt 0:00:12]} 29. Qxc4+ {[%emt 0:00:38]} bxc4 {[%emt 0:00:05]} 30. Bxa4 {[%emt 0:00:13]} Qh1+ {[%emt 0:00:38]} 31. Bg1 {[%emt 0:00:10]} Bc5 {[%emt 0:00:24]} 0-1

[Event "LAT-ch 2020"]
[Site "Riga"]
[Date "2020.08.29"]
[Round "7.1"]
[White "Lanka, Zigurds"]
[Black "Batashevs, Arsens"]
[Result "1-0"]
[ECO "B07"]
[WhiteElo "2391"]
[BlackElo "2149"]
[Annotator "ChessBase"]
[PlyCount "91"]
[EventDate "2020.08.24"]
[EventType "swiss"]
[EventCountry "LAT"]
[SourceTitle "playchess.com"]
[Source "ChessBase"]
[SourceQuality "1"]
[TimeControl "5400+30"]

1. e4 {[%emt 0:00:00]} d6 {[%emt 0:02:27]} 2. d4 {[%emt 0:00:00]} Nf6 {[%emt 0:00:14]} 3. Nc3 {[%emt 0:00:01]} c6 {[%emt 0:00:03]} 4. f4 {[%emt 0:00:46]} Qa5 {[%emt 0:00:45]} 5. Bd3 {[%emt 0:00:09]} e5 {[%emt 0:00:06]} 6. Nf3 {[%emt 0:00:16]} exd4 {[%emt 0:02:24]} 7. Nxd4 {[%emt 0:00:35]} g6 {[%emt 0:00:04]} 8. Nb3 {[%emt 0:02:26]} Qb6 {[%emt 0:00:21]} 9. Qf3 {[%emt 0:01:15]} Bg7 {[%emt 0:01:31]} 10. Be3 {[%emt 0:03:25]} Qc7 {[%emt 0:00:05]} 11. h3 {[%emt 0:02:53]} O-O {[%emt 0:00:42]} 12. O-O {[%emt 0:00:48]} Nbd7 {[%emt 0:08:48]} 13. a4 {[%emt 0:01:50]} b6 {[%emt 0:00:13]} 14. Qf2 {[%emt 0:03:31]} a6 {[%emt 0:04:17]} 15. Qh4 {[%emt 0:10:44]} c5 {[%emt 0:04:40]} 16. Nd2 {[%emt 0:01:47]} Bb7 {[%emt 0:00:06]} 17. f5 {[%emt 0:03:58]} d5 {[%emt 0:30:46]} 18. Bf4 {[%emt 0:07:22]} Qd8 {[%emt 0:04:17]} 19. exd5 {[%emt 0:06:30]} Nxd5 {[%emt 0:00:37]} 20. Bg5 {[%emt 0:04:04]} Qc7 {[%emt 0:27:30]} 21. Nxd5 {[%emt 0:04:57]} Bxd5 {[%emt 0:00:14]} 22. f6 {[%emt 0:00:40]} Bh8 {[%emt 0:00:22]} 23. Nc4 {[%emt 0:01:47]} Rfe8 {[%emt 0:07:53]} 24. Ne3 {[%emt 0:04:03]} Rxe3 {[%emt 0:00:02]} 25. Bxe3 {[%emt 0:00:11]} Qe5 {[%emt 0:00:09]} 26. Qg5 {[%emt 0:04:26]} Qxg5 {[%emt 0:01:40]} 27. Bxg5 {[%emt 0:00:05]} h6 {[%emt 0:00:04]} 28. Bxh6 {[%emt 0:01:15]} Bxf6 {[%emt 0:00:22]} 29. c3 {[%emt 0:00:33]} Bb3 {[%emt 0:02:40]} 30. Be4 {[%emt 0:02:54]} Ra7 {[%emt 0:00:35]} 31. Bc6 {[%emt 0:01:00]} Bg7 {[%emt 0:00:06]} 32. Bxg7 {[%emt 0:01:58]} Kxg7 {[%emt 0:00:04]} 33. a5 {[%emt 0:00:10]} b5 {[%emt 0:00:13]} 34. Rae1 {[%emt 0:00:32]} Nf6 {[%emt 0:02:04]} 35. Re5 {[%emt 0:02:04]} Rc7 {[%emt 0:00:13]} 36. Bf3 {[%emt 0:00:15]} c4 {[%emt 0:00:52]} 37. Rfe1 {[%emt 0:01:12]} Rd7 {[%emt 0:00:25]} 38. Re7 {[%emt 0:00:30]} Rd2 {[%emt 0:00:16]} 39. Ra7 {[%emt 0:00:26]} Rxb2 {[%emt 0:00:48]} 40. Ree7 {[%emt 0:00:08]} b4 {[%emt 0:00:12]} 41. Rxf7+ {[%emt 0:00:46]} Kh6 {[%emt 0:00:06]} 42. Rxf6 {[%emt 0:04:14]} bxc3 {[%emt 0:00:08]} 43. Be4 {[%emt 0:00:27]} Kg5 {[%emt 0:00:07]} 44. Raf7 {[%emt 0:00:47]} Bd1 {[%emt 0:01:05]} 45. Rxg6+ {[%emt 0:00:11]} Kh4 {[%emt 0:00:06]} 46. Rh7+ {[%emt 0:00:11]} 1-0

[Event "LAT-ch 2020"]
[Site "Riga"]
[Date "2020.08.29"]
[Round "7.2"]
[White "Berzinsh, Roland"]
[Black "Semjonovs, Ilja"]
[Result "0-1"]
[ECO "B51"]
[WhiteElo "2378"]
[BlackElo "2368"]
[Annotator "ChessBase"]
[PlyCount "90"]
[EventDate "2020.08.24"]
[EventType "swiss"]
[EventCountry "LAT"]
[SourceTitle "playchess.com"]
[Source "ChessBase"]
[SourceQuality "1"]
[TimeControl "5400+30"]

1. e4 {[%emt 0:00:57]} c5 {[%emt 0:03:13]} 2. Nf3 {[%emt 0:00:22]} d6 {[%emt 0:00:07]} 3. Bb5+ {[%emt 0:00:08]} Nd7 {[%emt 0:00:11]} 4. d4 {[%emt 0:00:16]} cxd4 {[%emt 0:00:10]} 5. Qxd4 {[%emt 0:00:13]} a6 {[%emt 0:00:43]} 6. Bxd7+ {[%emt 0:00:15]} Qxd7 {[%emt 0:00:05]} 7. Nc3 {[%emt 0:00:50]} e5 {[%emt 0:16:11]} 8. Qd3 {[%emt 0:00:34]} h6 {[%emt 0:01:19]} 9. Nd5 {[%emt 0:09:58]} Qc6 {[%emt 0:02:16]} 10. a4 {[%emt 0:09:15]} Ne7 {[%emt 0:05:16]} 11. c4 {[%emt 0:07:22]} f5 {[%emt 0:05:25]} 12. O-O {[%emt 0:08:32]} fxe4 {[%emt 0:08:20]} 13. Qxe4 {[%emt 0:00:05]} Bf5 {[%emt 0:00:11]} 14. Qe2 {[%emt 0:00:07]} Nxd5 {[%emt 0:03:22]} 15. Nd4 {[%emt 0:00:13]} Nf4 {[%emt 0:18:08]} 16. Bxf4 {[%emt 0:01:20]} Qe4 {[%emt 0:00:16]} 17. Qxe4 {[%emt 0:03:32]} Bxe4 {[%emt 0:02:16]} 18. Rfe1 {[%emt 0:00:06]} Bd3 {[%emt 0:09:30]} 19. Ra3 {[%emt 0:04:33]} Bxc4 {[%emt 0:01:19]} 20. Rc3 {[%emt 0:00:07]} Bg8 {[%emt 0:00:05]} 21. Nf3 {[%emt 0:07:02]} g5 {[%emt 0:06:30]} 22. Bxe5 {[%emt 0:19:44]} dxe5 {[%emt 0:01:02]} 23. Nxe5 {[%emt 0:00:09]} Rh7 {[%emt 0:01:17]} 24. Nc4+ {[%emt 0:13:16]} Kf7 {[%emt 0:02:05]} 25. Ne5+ {[%emt 0:05:00]} Kf6 {[%emt 0:04:28]} 26. Rf3+ {[%emt 0:05:08]} Kg7 {[%emt 0:00:25]} 27. h4 {[%emt 0:00:06]} gxh4 {[%emt 0:02:43]} 28. Re4 {[%emt 0:00:49]} Be6 {[%emt 0:04:17]} 29. Rxh4 {[%emt 0:00:21]} Bd6 {[%emt 0:01:03]} 30. Rg3+ {[%emt 0:02:19]} Kf6 {[%emt 0:00:06]} 31. Rh5 {[%emt 0:02:03]} Bxe5 {[%emt 0:01:11]} 32. Rf3+ {[%emt 0:00:05]} Ke7 {[%emt 0:00:01]} 33. Rxe5 {[%emt 0:00:06]} Kd6 {[%emt 0:00:30]} 34. Rh5 {[%emt 0:00:27]} Rg8 {[%emt 0:01:56]} 35. Rd3+ {[%emt 0:01:11]} Ke7 {[%emt 0:00:36]} 36. f4 {[%emt 0:00:02]} Rf8 {[%emt 0:00:53]} 37. g3 {[%emt 0:00:34]} Rf5 {[%emt 0:00:21]} 38. Rh2 {[%emt 0:00:10]} h5 {[%emt 0:00:23]} 39. Re2 {[%emt 0:00:24]} Kf6 {[%emt 0:00:05]} 40. Rd6 {[%emt 0:01:03]} Re7 {[%emt 0:00:03]} 41. Re4 {[%emt 0:01:06]} Kf7 {[%emt 0:00:13]} 42. Kf2 {[%emt 0:00:33]} Bd5 {[%emt 0:00:34]} 43. Rxe7+ {[%emt 0:00:34]} Kxe7 {[%emt 0:00:03]} 44. Rh6 {[%emt 0:00:08]} Bc6 {[%emt 0:00:30]} 45. b3 {[%emt 0:00:32]} Kf7 {[%emt 0:00:07]} 0-1